Cogmind - Beta 12 @@@ ROGUE MODE // 2023.08.24 @ 16:40:15 Player: Cmdr.Laserstrahl Result: Destroyed by G-34 Mercenary with Small Laser Performance ------------- Evolutions (0) 0 Regions Visited (1) 200 Robots Destroyed (11) 55 Value Destroyed (195) 195 Prototype IDs (2) 40 Alien Tech Used (0) 0 Bonus (0) 0 TOTAL SCORE: 490 Bonus ------- None Cogmind --------- Core Integrity 0/250 Matter 293/300 Energy 98/125 System Corruption 0% Temperature Hot (271) Movement Rolling (100) Location -10/Materials Parts ------- > --- POWER (1) -------- Light Ion Engine > --- PROPULSION (2) --- Compact Wheel > --- UTILITY (2) ------ Small Storage Unit Signal Interpreter > --- WEAPON (2) ------- Light EM Pulse Cannon Light Assault Rifle > --- INVENTORY (8) ---- Light Ion Engine Improved Aluminum Leg Improved Aluminum Leg Improved Aluminum Leg Improved Aluminum Leg Light Assault Rifle Peak State ------------ > --- POWER ------------ Light Ion Engine > --- PROPULSION ------- Wheel Compact Wheel > --- UTILITY ---------- Small Storage Unit Signal Interpreter > --- WEAPON ----------- Light EM Pulse Cannon Light Assault Rifle > --- INVENTORY -------- Light Ion Engine Improved Aluminum Leg Improved Aluminum Leg Improved Aluminum Leg Improved Aluminum Leg Light EM Pulse Cannon Light Assault Rifle [Rating: 9] Favorites ----------- Power Light Ion Engine Engine Light Ion Engine Propulsion Compact Wheel Wheel Compact Wheel Utility Small Storage Unit Storage Small Storage Unit Processor Signal Interpreter Weapon Light Assault Rifle Energy Gun EM Pulse Gun Energy Cannon Light EM Pulse Cannon Ballistic Gun Light Assault Rifle Build | -11 -10 ------- Run | Jun Mat Slots Evolved . | . . Power . | . . Propulsion . | . . Utility . | . . Weapon . | . . Parts Attached 9 | 6 3 Power 1 | 1 . Engine 1 | 1 . Core . | . . Reactor . | . . Propulsion 2 | 2 . Treads . | . . Leg . | . . Wheel 2 | 2 . Hover . | . . Flight . | . . Utility 2 | 1 1 Device . | . . Storage 1 | 1 . Processor 1 | . 1 Hackware . | . . Protection . | . . Artifact . | . . Weapon 4 | 2 2 Energy Gun 1 | 1 . Energy Cannon 2 | . 2 Ballistic Gun 1 | 1 . Ballistic Cannon . | . . Launcher . | . . Special Weapon . | . . Impact Weapon . | . . Slashing Weapon . | . . Piercing Weapon . | . . Special Melee Weapon . | . . Unidentified Prototypes . | . . Parts Lost 3 | . 3 Power . | . . Propulsion 1 | . 1 Utility . | . . Weapon 2 | . 2 Highest Loss Streak 3 | . 3 To Critical Strikes . | . . Average Slot Usage (%) 93 | . 93 Engine 14 | . 14 Wheel 28 | . 28 Storage 14 | . 14 Processor 8 | . 8 Energy Gun 12 | . 12 Energy Cannon 2 | . 2 Ballistic Gun 14 | . 14 Naked Turns . | . . Heaviest Build 13 | 11 13 Greatest Support 26 | 26 26 Greatest Overweight (x) . | . . Average Overweight (x) . | . . Largest Inventory Capacity 8 | 8 8 Average Capacity 7 | 7 8 Most Carried 8 | 3 8 Average Carried 5 | 1 6 Final Capacity 8 | 8 8 Final Carried 6 | 3 6 Class Distribution -------------------- 100% | Mutant Dominant Class ---------------- Mutant | -10/Materials Resources | -11 -10 ----------- Run | Jun Mat Matter Collected 297 | 262 35 Remotely . | . . Salvage Created 410 | 100 310 Parts 29 | 2 27 Haulers Intercepted 1 | . 1 Recyclers Shooed . | . . Parts Field Recycled . | . . Retrieved Matter . | . . Parts Self-Destructed . | . . Prevented . | . . Kills | -11 -10 ------- Run | Jun Mat Combat Hostiles Destroyed 7 | . 7 Guns 5 | . 5 Cannons 1 | . 1 Classes Destroyed 5 | 1 4 Hauler 1 | . 1 Recycler 1 | 1 . Watcher 2 | . 2 Swarmer 4 | . 4 Grunt 3 | . 3 Best Kill Streak 4 | 1 4 Combat Bots Only 4 | . 4 Max Kills in Single Turn 2 | 1 2 Gunslinging . | . . Exploded . | . . Melee . | . . Uniques/NPCs Destroyed . | . . Combat | -11 -10 -------- Run | Jun Mat Damage Taken 589 | . 589 Core 255 | . 255 Absorbed by Shields . | . . Core Remaining (%) 100 | 100 . Volleys Fired 29 | 2 27 Largest 2 | 2 2 Hottest 76 | 60 76 Shots Fired 55 | 4 51 Gun 48 | 4 44 Cannon 7 | . 7 Launcher . | . . Special . | . . Kinetic 29 | 2 27 Thermal . | . . Explosive . | . . Electromagnetic 26 | 2 24 Robot Hit Streak 6 | 2 6 Robot Miss Streak 4 | 1 4 Penetration Max . | . . Secondary Targets 2 | . 2 Max Gunslinging Chain 1 | . 1 Shots Hit Robots 30 | 3 27 Core Hits 15 | 2 13 Critical Kills 1 | . 1 Critical Parts Destroyed . | . . Critical Strikes 3 | 1 2 Destroy 1 | . 1 Corrupt 2 | 1 1 Melee Attacks . | . . Impact . | . . Slashing . | . . Piercing . | . . Sneak Attacks . | . . Combat Hostiles . | . . Follow-up Attacks . | . . Damage Inflicted 451 | 32 419 Guns 307 | 32 275 Cannons 111 | . 111 Explosions 33 | . 33 Melee . | . . Ramming . | . . Kinetic 154 | 20 134 Thermal 33 | . 33 Explosive . | . . Electromagnetic 264 | 12 252 Impact . | . . Slashing . | . . Piercing . | . . Highest Corruption . | . . Average Corruption . | . . Corruption Purged . | . . Corruption Blocked . | . . Overload Shots . | . . Overflow Damage . | . . Projectiles . | . . Explosions . | . . Melee . | . . Knockbacks . | . . Impact . | . . Kinetic . | . . Secondary . | . . Self-Inflicted Damage . | . . Shots . | . . Rammed . | . . Targets Rammed . | . . Kicked . | . . Crushed . | . . Highest Temperature 329 | 40 329 Average Temperature 117 | 24 123 Received Heat Transfer 291 | . 291 Effects 3 | . 3 Energy Bleed 1 | . 1 Interference 2 | . 2 Siege Activations . | . . Robots Corrupted 1 | . 1 Combat Hostiles 1 | . 1 Parts Fried 2 | . 2 Impact Corruptions . | . . Robots Melted . | . . Combat Hostiles . | . . Parts Melted . | . . Heat Transferred 50 | . 50 Parts Sabotaged . | . . Parts Stolen . | . . Parts Stripped . | . . Power Chain Reactions 1 | . 1 Missiles Intercepted . | . . Alert | -11 -10 ------- Run | Jun Mat Peak Influence 334 | 5 334 Initial 3 | . 3 Average 100 | 1 124 Maximum Alert Level 1 | . 1 Low Security (%) 83 | 100 79 Level 1 16 | . 20 Level 2 . | . . Level 3 . | . . Level 4 . | . . Level 5 . | . . High Security . | . . Max Security . | . . Squads Dispatched 1 | . 1 Investigation 1 | . 1 Extermination . | . . Reinforcement . | . . Assault . | . . Garrison . | . . Intercept . | . . Searches Triggered . | . . Construction Impeded . | . . Haulers Reinforced . | . . Active Scanning Responses . | . . Cargo Convoy Interrupts . | . . Stealth | -11 -10 --------- Run | Jun Mat Distress Signals 3 | . 3 Communications Jammed . | . . Distress Signals . | . . Times Spotted 20 | . 20 Peak Tracking Total 8 | . 8 Tactical Retreats 3 | . 3 Traps | -11 -10 ------- Run | Jun Mat Traps Triggered . | . . Indirectly . | . . Trap Hack Attempts . | . . Triggered . | . . Disarmed . | . . Reprogrammed . | . . Reused . | . . Traps Extracted . | . . Installed . | . . Triggered . | . . Machines | -11 -10 ---------- Run | Jun Mat Machines Disabled . | . . Max in Single Turn . | . . Machines Repaired . | . . Machines Sabotaged . | . . Overloaded Fab Kills . | . . Hacking | -11 -10 --------- Run | Jun Mat Machines Accessed 2 | . 2 Terminals 2 | . 2 Fabricators . | . . Repair Stations . | . . Recycling Units . | . . Scanalyzers . | . . Garrison Access . | . . Total Hacks 6 | . 6 Successful 2 | . 2 Failed 4 | . 4 Catastrophic . | . . Database Lockouts . | . . Manual . | . . Terminals 6 | . 6 Fabricators . | . . Repair Stations . | . . Recycling Units . | . . Scanalyzers . | . . Garrison Access . | . . Terminal Hacks 2 | . 2 Prototype ID Bank 1 | . 1 Locate Traps 1 | . 1 Fabricator Hacks . | . . Repair Station Hacks . | . . Recycling Unit Hacks . | . . Scanalyzer . | . . Garrison Access Hacks . | . . Unauthorized Hacks . | . . Terminals . | . . Fabricators . | . . Repair Stations . | . . Recycling Units . | . . Scanalyzers . | . . Garrison Access . | . . Data Cores Recovered . | . . Used . | . . Hacking Detections 2 | . 2 Full Trace Events 2 | . 2 Feedback Events . | . . Feedback Blocked . | . . Robot Schematics Acquired . | . . Robots Built . | . . Authchips . | . . Time . | . . Total Robot Build Rating . | . . Part Schematics Acquired . | . . Parts Built . | . . Authchips . | . . Time . | . . Total Part Build Rating . | . . Parts Repaired . | . . Time . | . . Parts Recycled . | . . Recycled Matter . | . . Retrieved Matter . | . . Retrieved Components . | . . Parts Scanalyzed . | . . Part Schematics Acquired . | . . Parts Damaged . | . . Bothacking | -11 -10 ------------ Run | Jun Mat Used RIF Installer . | . . Robots Hacked . | . . Non-combat . | . . Combat . | . . Robot Hacks Applied . | . . Relay Couplers Released . | . . Fabnet Peak Effective % . | . . Robots Rewired . | . . Allies Hacked . | . . Hacks Repelled . | . . Allies | -11 -10 -------- Run | Jun Mat Total Allies . | . . Largest Group . | . . Highest-Rated Group . | . . Highest-Rated Ally . | . . Total Orders . | . . Ally Attacks . | . . Total Damage . | . . Kills . | . . Allies Corrupted . | . . Allies Melted . | . . Intel | -11 -10 ------- Run | Jun Mat Robot Analysis Total . | . . Derelict Logs Recovered . | . . Drone Launches . | . . Drone Recoveries . | . . Exploration | -11 -10 ------------- Run | Jun Mat Turns Passed 264 | 52 212 Spaces Moved 177 | 36 141 Core 2 | 2 . Treads . | . . Legs . | . . Wheels 175 | 34 141 Hover . | . . Flight . | . . Fastest Speed 50 | 50 90 Average Speed 89 | 87 90 Slowest Speed 100 | 90 100 Overloaded Moves . | . . Propulsion Burnouts . | . . Robots Hopped . | . . Cave-ins Triggered . | . . Exploration Rate (%) 24 | 3 46 Regions Visited 1 Branch Regions . Pre-discovered Areas . | . . Known Exits Taken . | . . Unknown Exits Taken 1 | 1 . Scrap Searched . | . . Spaces Dug . | . . Terrain Destroyed . | . . Melee . | . . Projectile . | . . AOE . | . . Terrain Rammed . | . . Walls Destroyed . | . . Machines Disabled . | . . Actions | -11 -10 --------- Run | Jun Mat Total 232 | 52 180 Wait 2 | . 2 Move 176 | 35 141 Hop . | . . Pick Up 15 | 9 6 Fast Attach 1 | . 1 Attach 8 | 6 2 Detach . | . . Swap . | . . Drop 1 | . 1 Fire 29 | 2 27 Melee . | . . Ram . | . . Kick . | . . Crush . | . . Escape Stasis . | . . Rewire . | . . Trap . | . . Miscellaneous . | . . Route ------- -11/Junkyard -10/Materials (discovered 2 exits: [*Min x2]) History --------- Turn | Location | Event 4 | -11/Junkyard | Discovered new exit (range 16) 53 | -11/Junkyard | Entered Materials 180 | -10/Materials | Discovered new exit (range 12) 209 | -10/Materials | Discovered new exit (range 16) 238 | -10/Materials | Core integrity fell below 50% 256 | -10/Materials | Core integrity fell below 20% 265 | -10/Materials | Destroyed by G-34 Mercenary with Small Laser Last Messages --------------- 00249_ Lgt. EM Pulse Cannon destroyed. 00250_ G-34 Mercenary IFF system glitched. 00251_ K-01 Serf collects debris. 00251_ G-34 Mercenary destroyed. 00252_ R-06 Scavenger inserts Lgt. Treads into recycling unit. 00253_ Recycling unit begins recycling process. 00254_ K-01 Serf collects debris. 00255_ R-06 Scavenger inserts Med. Matter Pod into recycling unit. 00257_ Overheating: Energy bleed (-5). 00258_ Overheating: System interference. 00258_ Lgt. EM Pulse Cannon temporarily disabled. 00258_ K-01 Serf collects debris. 00258_ R-06 Scavenger inserts Med. Matter Pod into recycling unit. 00259_ Recycling unit begins recycling process. 00260_ Wheel destroyed. 00261_ R-06 Scavenger collects Corrupted Particle Gun. 00261_ S-10 Pest destroyed. 00262_ Acquired 17 matter. 00262_ K-01 Serf collects debris. 00264_ R-06 Scavenger inserts Corrupted Particle Gun into recycling unit. Map ----- +----------------------------------------------------+ | ?????????????????????????????????????????????????? | | ?????????????????????????????????????????????????? | | ?????????????????????????????????????????????????? | | ?????????????????????????????????????????????????? | | ?????????????????????????????????????????????????? | | ?????????????????????????????????????????????????? | | ?????????????????????????????????????????????????? | | ?????????????????????????????????? ??^??? ???????? | | ?????????????????????????????????# ???^?? ?? ??? | | ?????????????????????????????????# ???^?? ?# #?? | | ?????????????????????????????????# ?????^ ## ### | | ?????????????????????????????????# ?????? ## ! | | ?????????????????????????????????# ?????? ## | | ?????????????????????????????????# ######+## | | ?????????????????????????????????# | | ?????????????????????????????????# | | ?????????????????????????????????# k ||= ? | | ??????????????????????????????????# |== #?? | | ???????????????####????############ ! |== ### | | ???????????????? ##### | | ??????????????? !% | | ??????????????? < """ = | | ???????????????? """ | | ????????????????? #???# """ | | ?????????????????# ###### ### | | ?????????????????# # =#@g ######### # | | ?????????????????# #""= +=[= #""""""?# // +^ | | #####+###????????# #"Y [#kg #" |"|??# // "# | | #????????# #"" # k #" "# T#?^ | | #????????# # # "#?? | | #????????# # / # < #?? | | #????????# # # #?? | | #????????# # #s # #######+##### | | ##########=# #r #########?#!= # | | ## ]!!##%###### s #######!"" """ # | | ## =]!!## ###### *=!%+!"T """ # | | ###+###### ## = % % ####!"" """ # | | # #### ## ######+######## #??#!! # | | # ## #?# #??#! # | | # ## #?# #??# # | | # ## #?# #??# # | | # ###+####### ## #?# #??########### | | ## ##? ?????# ## """ """ #? ????????????? | | ?# #?? ?????# ## """ """ #? ????????????? | | ?# #?# #????# ## """ """ #? ????????????? | | ?# #?#! #????# #############? #????????????? | | ?# #?# #????# ????????????? ?????????????? | | ?# #?# #???? ##???????????? ?????????????? | | ?# #?# #????# #????????????? ?????????????? | | ?# #?#####????# #????????????? ?????????????? | +----------------------------------------------------+ Best States ------------- Heat Dissipation 25 Energy Generation 10 Energy Capacity 125 Matter Stores 300 Matter Capacity 300 Sight Range 16 Terrain Scan Density 10 Evasion (%) 42 Item Schematics ----------------- None Robot Schematics ------------------ None Fabricated ------------ Nothing Alien Tech Used ----------------- None Achievements -------------- None Challenges ------------ None Game ------ Seed StorageImpulseAirjet Manual? 0 Play Time 00:09:42 Cumulative 121.1 hours Start 2023.08.24 @ 16:33:06 End 2023.08.24 @ 16:40:15 Sessions 1 Manual Loads 0 Difficulty Rogue Special Mode None Game No. 55 Rogue 52 Adventurer 3 Explorer 0 Win Type - Total 0 Types 0/0/0/0/0/0/0/0/0 Lore% 22 Gallery% 42 Achievement% 28 Wizard Run 0 Options --------- ASCII 0 Keyboard 0 Movement Mouse Keybinds 0 Fullscreen 1 Font 18/SmallcapsGlow Map View 76x50 Tactical HUD 1 Map Filters NONE Filters NONE Steam 1 RUN: 629301de-ae6d-4ba2-866c-5e554d589c4b